fUST/lending_fUST_20260603
["ID","MTS","AMOUNT","RATE_DAILY","PERIOD"]
[423856851,1780455041000,-502.29238237,0.00018239,2]
[423856848,1780455041000,-512.07010158,0.00018239,2]
[423856847,1780455041000,-616.16052234,0.00018239,2]
[423856839,1780455041000,-501.00409421,0.00018239,2]
[423856835,1780455041000,-526.12907174,0.00018239,2]
[423856833,1780455041000,-503.6259788,0.00018239,2]
[423856834,1780455041000,-500.0,0.00018239,2]
[423856829,1780455041000,-500.0,0.00018196,2]
[423856831,1780455041000,-500.0,0.00018196,2]
[423856837,1780455041000,-512.54684839,0.00018239,2]
[423856828,1780455041000,-3150.47,0.00018196,2]
[423856832,1780455041000,-500.0,0.00018238,2]
[423856852,1780455041000,-1671.9,0.00018239,2]
[423856863,1780455041000,-503.77740797,0.00018239,2]
[423856849,1780455041000,-507.83183454,0.00018239,2]
[423856850,1780455041000,-500.0,0.00018239,2]
[423856841,1780455041000,-503.57928188,0.00018239,2]
[423856844,1780455041000,-586.15283617,0.00018239,2]
[423856845,1780455041000,-491.76454544,0.00018239,2]
[423856843,1780455041000,-513.79549415,0.00018239,2]
[423856846,1780455041000,-512.22492821,0.00018239,2]
[423856842,1780455041000,-501.42008215,0.00018239,2]
[423856854,1780455041000,-410.70738989,0.00018239,2]
[423856856,1780455041000,-510.7501594,0.00018239,2]
[423856857,1780455041000,-502.62540503,0.00018239,2]
[423856858,1780455041000,-501.58627341,0.00018239,2]
[423856859,1780455041000,-503.74999815,0.00018239,2]
[423856830,1780455041000,-602.6,0.00018196,2]
[423856853,1780455041000,-506.73266955,0.00018239,2]
[423856825,1780455041000,-187.91848223,0.00018196,2]
[423856806,1780455041000,-500.0,0.00018194,2]
[423856826,1780455041000,-158.89403132,0.00018196,2]
[423856860,1780455041000,-505.14564609,0.00018239,2]
[423856800,1780455041000,-500.0,0.00018194,2]
[423856795,1780455041000,-171.53615954,0.00018002,2]
[423856798,1780455041000,-500.0,0.00018194,2]
[423856797,1780455041000,-221.63749534,0.00018139,2]
[423856796,1780455041000,-160.0,0.00018046,2]
[423856802,1780455041000,-500.0,0.00018194,2]
[423856812,1780455041000,-500.0,0.00018195,2]
[423856813,1780455041000,-503.72915628,0.00018195,2]
[423856804,1780455041000,-500.0,0.00018194,2]
[423856801,1780455041000,-2236.27,0.00018194,2]
[423856803,1780455041000,-500.0,0.00018194,2]
[423856805,1780455041000,-500.0,0.00018194,2]
[423856811,1780455041000,-406.78908409,0.00018195,2]
[423856809,1780455041000,-619.8,0.00018194,2]
[423856810,1780455041000,-500.0,0.00018195,2]
[423856807,1780455041000,-500.0,0.00018194,2]
[423856808,1780455041000,-500.0,0.00018194,2]
[423856814,1780455041000,-514.87615787,0.00018195,2]
[423856816,1780455041000,-506.85144602,0.00018195,2]
[423856817,1780455041000,-501.89539192,0.00018195,2]
[423856818,1780455041000,-506.71084726,0.00018195,2]
[423856822,1780455041000,-504.91566672,0.00018195,2]
[423856819,1780455041000,-511.30675307,0.00018195,2]
[423856820,1780455041000,-504.82921185,0.00018195,2]
[423856823,1780455041000,-500.0,0.00018195,2]
[423856821,1780455041000,-631.83418883,0.00018195,2]
[423856815,1780455041000,-261.24184928,0.00018195,2]
[423856824,1780455041000,-658.88,0.00018196,2]
[423856827,1780455041000,-500.0,0.00018196,2]
[423856861,1780455041000,-508.5968276,0.00018239,2]
[423856799,1780455041000,-500.0,0.00018194,2]
[423856862,1780455041000,-504.46819123,0.00018239,2]
[423856899,1780455041000,-501.98504252,0.00018239,2]
[423856909,1780455041000,-500.0,0.00018241,2]
[423856907,1780455041000,-215.67110589,0.0001824,2]
[423856908,1780455041000,-583.92841812,0.0001824,2]
[423856898,1780455041000,-500.0,0.00018239,2]
[423856910,1780455041000,-510.56023608,0.00018241,2]
[423856900,1780455041000,-501.02644444,0.00018239,2]
[423856903,1780455041000,-503.75822152,0.00018239,2]
[423856906,1780455041000,-492.0786032,0.0001824,2]
[423856905,1780455041000,-501.41521014,0.00018239,2]
[423856902,1780455041000,-507.52020981,0.00018239,2]
[423856901,1780455041000,-522.82286836,0.00018239,2]
[423856904,1780455041000,-501.70136454,0.00018239,2]
[423856919,1780455041000,-500.0,0.00018241,2]
[423856891,1780455041000,-500.0,0.00018239,2]
[423856916,1780455041000,-500.0,0.00018241,2]
[423856921,1780455041000,-176.58586244,0.00018241,2]
[423856918,1780455041000,-505.57051702,0.00018241,2]
[423856915,1780455041000,-500.0,0.00018241,2]
[423856920,1780455041000,-500.0,0.00018241,2]
[423856914,1780455041000,-500.0,0.00018241,2]
[423856912,1780455041000,-341.9278937,0.00018241,2]
[423856917,1780455041000,-500.0,0.00018241,2]
[423856923,1780455041000,-2313.43,0.00018241,2]
[423856922,1780455041000,-500.0,0.00018241,2]
[423856924,1780455041000,-505.12721325,0.00018241,2]
[423856925,1780455041000,-533.78813565,0.00018241,2]
[423856926,1780455041000,-502.72757961,0.00018241,2]
[423856927,1780455041000,-501.10702555,0.00018241,2]
[423856864,1780455041000,-503.51351952,0.00018239,2]
[423856913,1780455041000,-552.08928184,0.00018241,2]
[423856893,1780455041000,-500.0,0.00018239,2]
[423856911,1780455041000,-500.0,0.00018241,2]
[423856897,1780455041000,-506.31255617,0.00018239,2]
[423856887,1780455041000,-501.66654585,0.00018239,2]
[423856865,1780455041000,-501.78022525,0.00018239,2]
[423856866,1780455041000,-509.22436171,0.00018239,2]
[423856867,1780455041000,-500.0,0.00018239,2]
[423856868,1780455041000,-592.8,0.00018239,2]
[423856870,1780455041000,-500.0,0.00018239,2]
[423856879,1780455041000,-209.60405296,0.00018239,2]
[423856880,1780455041000,-502.54985945,0.00018239,2]
[423856869,1780455041000,-502.70063608,0.00018239,2]
[423856882,1780455041000,-502.01235566,0.00018239,2]
[423856881,1780455041000,-500.0,0.00018239,2]
[423856872,1780455041000,-506.47223583,0.00018239,2]
[423856871,1780455041000,-503.07691524,0.00018239,2]
[423856873,1780455041000,-502.43169445,0.00018239,2]
[423856874,1780455041000,-515.88,0.00018239,2]
[423856855,1780455041000,-512.83846481,0.00018239,2]
[423856876,1780455041000,-500.0,0.00018239,2]
[423856877,1780455041000,-500.0,0.00018239,2]
[423856885,1780455041000,-500.0,0.00018239,2]
[423856894,1780455041000,-505.83736233,0.00018239,2]
[423856890,1780455041000,-500.0,0.00018239,2]
[423856895,1780455041000,-444.10183068,0.00018239,2]
[423856886,1780455041000,-502.18936542,0.00018239,2]
[423856892,1780455041000,-504.43055837,0.00018239,2]
[423856889,1780455041000,-506.00345137,0.00018239,2]
[423856896,1780455041000,-543.80846539,0.00018239,2]
[423856883,1780455041000,-512.06046588,0.00018239,2]
[423856884,1780455041000,-500.0,0.00018239,2]
[423856875,1780455041000,-502.32506463,0.00018239,2]
[423856878,1780455041000,-500.0,0.00018239,2]
[423856888,1780455041000,-504.76555229,0.00018239,2]
[423856973,1780455042000,-500.0,0.00018513,2]
[423856970,1780455042000,-592.8,0.00018513,2]
[423856971,1780455042000,-500.0,0.00018513,2]
[423856974,1780455042000,-637.8968153,0.00018513,2]
[423856955,1780455042000,-500.0,0.00018468,2]
[423856972,1780455042000,-515.88,0.00018513,2]
[423856965,1780455042000,-602.6,0.0001847,2]
[423856966,1780455042000,-515.30244096,0.0001847,2]
[423856968,1780455042000,-500.0,0.00018513,2]
[423856969,1780455042000,-1671.9,0.00018513,2]
[423856967,1780455042000,-151.26,0.000185,2]
[423856964,1780455042000,-500.0,0.0001847,2]
[423856976,1780455042000,-518.37437399,0.00018513,2]
[423856975,1780455042000,-304.02738576,0.00018513,2]
[423856977,1780455042000,-500.0,0.00018513,2]
[423856984,1780455042000,-160.92352669,0.00018515,2]
[423856988,1780455042000,-504.06385446,0.00018515,2]
[423856982,1780455042000,-500.0,0.00018515,2]
[423856980,1780455042000,-480.53490752,0.00018515,2]
[423856989,1780455042000,-221.63749531,0.00018524,2]
[423856985,1780455042000,-500.0,0.00018515,2]
[423856981,1780455042000,-500.0,0.00018515,2]
[423856978,1780455042000,-500.0,0.00018513,2]
[423856983,1780455042000,-500.0,0.00018515,2]
[423856986,1780455042000,-500.0,0.00018515,2]
[423856987,1780455042000,-500.0,0.00018515,2]
[423856992,1780455042000,-1415.0,0.00018671,2]
[423856991,1780455042000,-406.05,0.0001863,2]
[423856990,1780455042000,-1680.0,0.00018622,2]
[423856958,1780455042000,-500.0,0.00018469,2]
[423856979,1780455042000,-500.0,0.00018515,2]
[423856950,1780455042000,-500.0,0.00018468,2]
[423856932,1780455042000,-514.24378868,0.00018241,2]
[423856960,1780455042000,-500.0,0.00018469,2]
[423856930,1780455042000,-500.0,0.00018241,2]
[423856928,1780455042000,-474.16118006,0.00018241,2]
[423856935,1780455042000,-505.91781421,0.00018241,2]
[423856929,1780455042000,-505.57703253,0.00018241,2]
[423856931,1780455042000,-502.80464233,0.00018241,2]
[423856934,1780455042000,-502.94241358,0.00018241,2]
[423856933,1780455042000,-504.51878741,0.00018241,2]
[423856947,1780455042000,-500.0,0.00018468,2]
[423856937,1780455042000,-503.89782487,0.00018241,2]
[423856949,1780455042000,-2236.27,0.00018468,2]
[423856940,1780455042000,-503.38479307,0.00018241,2]
[423856948,1780455042000,-500.0,0.00018468,2]
[423856939,1780455042000,-501.46846428,0.00018241,2]
[423856941,1780455042000,-500.0,0.00018241,2]
[423856953,1780455042000,-515.85337965,0.00018468,2]
[423856936,1780455042000,-503.0613416,0.00018241,2]
[423856942,1780455042000,-500.0,0.00018241,2]
[423856944,1780455042000,-932.93176097,0.00018354,2]
[423856945,1780455042000,-292.28595047,0.00018403,2]
[423856946,1780455042000,-500.0,0.00018468,2]
[423856943,1780455042000,-501.53327254,0.00018241,2]
[423856961,1780455042000,-658.88,0.0001847,2]
[423856951,1780455042000,-500.0,0.00018468,2]
[423856952,1780455042000,-500.0,0.00018468,2]
[423856954,1780455042000,-500.0,0.00018468,2]
[423856962,1780455042000,-215.60184562,0.0001847,2]
[423856963,1780455042000,-3150.47,0.0001847,2]
[423856959,1780455042000,-500.0,0.00018469,2]
[423856957,1780455042000,-619.8,0.00018468,2]
[423856956,1780455042000,-500.0,0.00018468,2]
[423856938,1780455042000,-501.68148944,0.00018241,2]
[423857001,1780455042000,-500.0,0.00018742,2]
[423857002,1780455042000,-500.0,0.00018742,2]
[423856993,1780455042000,-582.851,0.00018671,2]
[423857040,1780455042000,-500.0,0.00019016,2]
[423857029,1780455042000,-297.25403384,0.00018789,2]
[423857032,1780455042000,-406.05,0.00018904,2]
[423857034,1780455042000,-500.0,0.00019016,2]
[423857042,1780455042000,-500.0,0.00019016,2]
[423857031,1780455042000,-1000.0,0.000188,2]
[423857033,1780455042000,-221.63749531,0.0001891,2]
[423857035,1780455042000,-500.0,0.00019016,2]
[423857037,1780455042000,-2236.27,0.00019016,2]
[423857038,1780455042000,-158.12833214,0.00019016,2]
[423857036,1780455042000,-500.0,0.00019016,2]
[423857039,1780455042000,-395.67369693,0.00019016,2]
[423857045,1780455042000,-500.0,0.00019017,2]
[423857044,1780455042000,-619.8,0.00019016,2]
[423857041,1780455042000,-500.0,0.00019016,2]
[423857043,1780455042000,-500.0,0.00019016,2]
[423857056,1780455042000,-500.0,0.00019061,2]
[423857054,1780455042000,-515.88,0.00019061,2]
[423857055,1780455042000,-500.0,0.00019061,2]
[423857047,1780455042000,-3150.47,0.00019018,2]
[423857052,1780455042000,-592.8,0.00019061,2]
[423857049,1780455042000,-602.6,0.00019018,2]
[423857050,1780455042000,-500.0,0.00019061,2]
[423857048,1780455042000,-500.0,0.00019018,2]
[423857053,1780455042000,-500.0,0.00019061,2]
[423857051,1780455042000,-1671.9,0.00019061,2]
[423857058,1780455042000,-500.0,0.00019063,2]
[423857060,1780455042000,-500.0,0.00019063,2]
[423856996,1780455042000,-500.0,0.00018742,2]
[423857059,1780455042000,-500.0,0.00019063,2]
[423857046,1780455042000,-658.88,0.00019018,2]
[423857030,1780455042000,-519.57003357,0.00018789,2]
[423857057,1780455042000,-423.7138302,0.00019061,2]
[423857022,1780455042000,-166.98193463,0.00018789,2]
[423857025,1780455042000,-500.0,0.00018789,2]
[423856997,1780455042000,-500.0,0.00018742,2]
[423856998,1780455042000,-500.0,0.00018742,2]
[423856994,1780455042000,-3631.0,0.00018671,2]
[423856999,1780455042000,-2236.27,0.00018742,2]
[423857000,1780455042000,-500.0,0.00018742,2]
[423857003,1780455042000,-500.0,0.00018742,2]
[423857005,1780455042000,-500.0,0.00018742,2]
[423857004,1780455042000,-500.0,0.00018742,2]
[423857014,1780455042000,-1671.9,0.00018787,2]
[423857015,1780455042000,-592.8,0.00018787,2]
[423857006,1780455042000,-619.8,0.00018742,2]
[423857009,1780455042000,-658.88,0.00018744,2]
[423857008,1780455042000,-522.93316981,0.00018743,2]
[423857010,1780455042000,-3150.47,0.00018744,2]
[423856995,1780455042000,-188.317,0.00018671,2]
[423857013,1780455042000,-500.0,0.00018787,2]
[423857007,1780455042000,-500.0,0.00018743,2]
[423857024,1780455042000,-500.0,0.00018789,2]
[423857018,1780455042000,-500.0,0.00018787,2]
[423857020,1780455042000,-500.0,0.00018787,2]
[423857023,1780455042000,-500.0,0.00018789,2]
[423857019,1780455042000,-500.0,0.00018787,2]
[423857026,1780455042000,-504.54939352,0.00018789,2]
[423857016,1780455042000,-500.0,0.00018787,2]
[423857028,1780455042000,-2313.43,0.00018789,2]
[423857027,1780455042000,-512.95726068,0.00018789,2]
[423857017,1780455042000,-515.88,0.00018787,2]
[423857012,1780455042000,-602.6,0.00018744,2]
[423857011,1780455042000,-500.0,0.00018744,2]
[423857021,1780455042000,-500.0,0.00018789,2]
[423857107,1780455043000,-500.0,0.00019452,2]
[423857106,1780455043000,-500.0,0.00019452,2]
[423857113,1780455043000,-500.0,0.00019452,2]
[423857112,1780455043000,-500.0,0.00019452,2]
[423857105,1780455043000,-500.0,0.00019452,2]
[423857104,1780455043000,-500.0,0.00019452,2]
[423857103,1780455043000,-500.0,0.00019452,2]
[423857100,1780455043000,-500.0,0.00019452,2]
[423857096,1780455043000,-27699.5890738,0.00019379,2]
[423857095,1780455043000,-2313.43,0.00019337,2]
[423857109,1780455043000,-500.0,0.00019452,2]
[423857102,1780455043000,-500.0,0.00019452,2]
[423857091,1780455043000,-504.44785205,0.00019337,2]
[423857128,1780455043000,-500.0,0.00019452,2]
[423857111,1780455043000,-500.0,0.00019452,2]
[423857101,1780455043000,-500.0,0.00019452,2]
[423857108,1780455043000,-629.49196578,0.00019452,2]
[423857115,1780455043000,-500.0,0.00019452,2]
[423857125,1780455043000,-500.0,0.00019452,2]
[423857114,1780455043000,-500.0,0.00019452,2]
[423857123,1780455043000,-500.0,0.00019452,2]
[423857130,1780455043000,-500.0,0.00019452,2]
[423857116,1780455043000,-500.0,0.00019452,2]
[423857117,1780455043000,-500.0,0.00019452,2]
[423857119,1780455043000,-500.0,0.00019452,2]
[423857118,1780455043000,-224.16946041,0.00019452,2]
[423857122,1780455043000,-500.0,0.00019452,2]
[423857094,1780455043000,-500.0,0.00019337,2]
[423857110,1780455043000,-500.0,0.00019452,2]
[423857088,1780455043000,-515.88,0.00019335,2]
[423857083,1780455043000,-169.87751793,0.00019295,10]
[423857090,1780455043000,-500.0,0.00019335,2]
[423857068,1780455043000,-2236.27,0.0001929,2]
[423857070,1780455043000,-500.0,0.0001929,2]
[423857069,1780455043000,-500.0,0.0001929,2]
[423857062,1780455043000,-406.05,0.00019178,2]
[423857063,1780455043000,-1350.3533759,0.00019243,2]
[423857066,1780455043000,-383.93195704,0.0001929,2]
[423857065,1780455043000,-637.91207198,0.0001929,2]
[423857064,1780455043000,-319.498,0.00019253,2]
[423857061,1780455043000,-1000.0,0.000191,3]
[423857067,1780455043000,-500.0,0.0001929,2]
[423857073,1780455043000,-500.0,0.0001929,2]
[423857071,1780455043000,-200.80242731,0.0001929,2]
[423857074,1780455043000,-619.8,0.0001929,2]
[423857092,1780455043000,-500.0,0.00019337,2]
[423857082,1780455043000,-221.63749531,0.00019295,2]
[423857076,1780455043000,-500.0,0.00019291,2]
[423857080,1780455043000,-500.0,0.00019292,2]
[423857084,1780455043000,-177.43601919,0.00019335,2]
[423857085,1780455043000,-1671.9,0.00019335,2]
[423857079,1780455043000,-3150.47,0.00019292,2]
[423857081,1780455043000,-602.6,0.00019292,2]
[423857087,1780455043000,-500.0,0.00019335,2]
[423857099,1780455043000,-500.0,0.00019452,2]
[423857098,1780455043000,-500.0,0.00019452,2]
[423857089,1780455043000,-500.0,0.00019335,2]
[423857086,1780455043000,-592.8,0.00019335,2]
[423857097,1780455043000,-720.0,0.00019416,2]
[423857093,1780455043000,-506.96957529,0.00019337,2]
[423857078,1780455043000,-658.88,0.00019292,2]
[423857124,1780455043000,-500.0,0.00019452,2]
[423857132,1780455043000,-500.0,0.00019452,2]
[423857144,1780455043000,-619.8,0.00019564,2]
[423857164,1780455043000,-500.0,0.00019611,2]
[423857170,1780455043000,-500.0,0.00019675,2]
[423857171,1780455043000,-500.0,0.00019675,2]
[423857172,1780455043000,-500.0,0.00019675,2]
[423857175,1780455043000,-2313.43,0.00019675,2]
[423857173,1780455043000,-332.05145074,0.00019675,2]
[423857174,1780455043000,-2313.43,0.00019675,2]
[423857177,1780455043000,-2313.43,0.00019675,2]
[423857176,1780455043000,-2313.43,0.00019675,2]
[423857179,1780455043000,-2313.43,0.00019675,2]
[423857180,1780455043000,-2313.43,0.00019675,2]
[423857178,1780455043000,-2313.43,0.00019675,2]
[423857181,1780455043000,-2313.43,0.00019675,2]
[423857182,1780455043000,-2313.43,0.00019675,2]
[423857183,1780455043000,-2313.43,0.00019675,2]
[423857194,1780455043000,-221.63749531,0.0001968,2]
[423857185,1780455043000,-2313.43,0.00019675,2]
[423857186,1780455043000,-2313.43,0.00019675,2]
[423857187,1780455043000,-2313.43,0.00019675,2]
[423857190,1780455043000,-2313.43,0.00019675,2]
[423857189,1780455043000,-2313.43,0.00019675,2]
[423857196,1780455043000,-178548.18827323,0.0001977,2]
[423857184,1780455043000,-2313.43,0.00019675,2]
[423857192,1780455043000,-2313.43,0.00019675,2]
[423857195,1780455043000,-406.05,0.00019726,2]
[423857188,1780455043000,-2313.43,0.00019675,2]
[423857193,1780455043000,-2313.61261799,0.00019675,2]
[423857191,1780455043000,-2313.43,0.00019675,2]
[423857121,1780455043000,-500.0,0.00019452,2]
[423857169,1780455043000,-500.0,0.00019675,2]
[423857168,1780455043000,-500.0,0.00019675,2]
[423857143,1780455043000,-500.0,0.00019564,2]
[423857165,1780455043000,-500.0,0.00019674,2]
[423857167,1780455043000,-197.60541517,0.00019674,2]
[423857138,1780455043000,-406.05,0.00019452,2]
[423857146,1780455043000,-658.88,0.00019566,2]
[423857135,1780455043000,-500.0,0.00019452,2]
[423857147,1780455043000,-3150.47,0.00019566,2]
[423857133,1780455043000,-500.0,0.00019452,2]
[423857142,1780455043000,-500.0,0.00019564,2]
[423857137,1780455043000,-244.35165965,0.00019452,2]
[423857141,1780455043000,-500.0,0.00019564,2]
[423857140,1780455043000,-2236.27,0.00019564,2]
[423857139,1780455043000,-500.0,0.00019564,2]
[423857149,1780455043000,-602.6,0.00019566,2]
[423857160,1780455043000,-500.0,0.00019609,2]
[423857148,1780455043000,-500.0,0.00019566,2]
[423857145,1780455043000,-500.0,0.00019565,2]
[423857151,1780455043000,-508.22,0.00019576,2]
[423857162,1780455043000,-500.0,0.00019609,2]
[423857163,1780455043000,-526.42052957,0.00019609,2]
[423857155,1780455043000,-300.0,0.00019589,3]
[423857156,1780455043000,-300.0,0.00019589,3]
[423857154,1780455043000,-300.0,0.00019589,3]
[423857157,1780455043000,-162.4030351,0.000196,7]
[423857158,1780455043000,-1671.9,0.00019609,2]
[423857166,1780455043000,-2313.43,0.00019674,2]
[423857153,1780455043000,-596.75,0.00019576,2]
[423857150,1780455043000,-508.22,0.00019576,2]
[423857161,1780455043000,-515.88,0.00019609,2]
[423857159,1780455043000,-592.8,0.00019609,2]
[423857152,1780455043000,-508.22,0.00019576,2]
[423857199,1780455044000,-501.4250994,0.00017646,2]
[423857197,1780455044000,-500.0,0.00017546,2]
[423857201,1780455044000,-397.25118177,0.0001782,2]
[423857198,1780455044000,-2091.74856071,0.00017546,2]
[423857200,1780455044000,-102.74881823,0.0001782,2]
[423857206,1780455044000,-500.0,0.0001919,2]
[423857204,1780455044000,-500.0,0.00018642,2]
[423857203,1780455044000,-500.0,0.00018368,2]
[423857205,1780455044000,-500.0,0.00018916,2]
[423857207,1780455044000,-193.94131823,0.00019464,2]
[423857202,1780455044000,-500.0,0.00018094,2]
[423858306,1780456232000,-666.02300211,8.955e-05,2]
[423858308,1780456232000,-872.19320732,9.51e-05,7]
[423858310,1780456232000,-774.91918819,9.7e-05,7]
[423858302,1780456232000,-335.23079958,8.865e-05,2]
[423858304,1780456232000,-4664.76920042,8.865e-05,2]
[423858444,1780456238000,-300.0,0.00010199,2]
[423858443,1780456238000,-300.0,0.00010199,2]
[423858442,1780456238000,-2116.3937317,0.00010159,2]
[423858439,1780456238000,-627.76560233,9.986e-05,7]
[423858438,1780456238000,-244.42760499,9.986e-05,7]
[423858441,1780456238000,-1338.34704208,0.0001,2]
[423858440,1780456238000,-465.84132505,0.0001,2]
[423858437,1780456238000,-1200.0,9.983e-05,2]
[423858436,1780456238000,-97.27401913,9.7e-05,7]
[423858488,1780456239000,-500.0,0.00013698,2]
[423858492,1780456239000,-500.0,0.00013698,2]
[423858490,1780456239000,-500.0,0.00013698,2]
[423858491,1780456239000,-500.0,0.00013698,2]
[423858484,1780456239000,-500.0,0.00013698,2]
[423858485,1780456239000,-501.80197764,0.00013698,2]
[423858483,1780456239000,-2206.77541534,0.00013694,2]
[423858482,1780456239000,-2206.77541534,0.00013694,2]
[423858480,1780456239000,-2206.77541534,0.00013694,2]
[423858494,1780456239000,-500.0,0.00013698,2]
[423858509,1780456239000,-500.0,0.00013698,2]
[423858477,1780456239000,-2206.77541534,0.00013694,2]
[423858479,1780456239000,-2206.77541534,0.00013694,2]
[423858493,1780456239000,-500.0,0.00013698,2]
[423858497,1780456239000,-500.0,0.00013698,2]
[423858498,1780456239000,-500.45432691,0.00013698,2]
[423858496,1780456239000,-500.0,0.00013698,2]
[423858481,1780456239000,-2206.77541534,0.00013694,2]
[423858489,1780456239000,-500.0,0.00013698,2]
[423858499,1780456239000,-500.0,0.00013698,2]
[423858500,1780456239000,-366.34140712,0.00013698,2]
[423858502,1780456239000,-500.0,0.00013698,2]
[423858512,1780456239000,-500.0,0.00013698,2]
[423858504,1780456239000,-500.0,0.00013698,2]
[423858510,1780456239000,-500.0,0.00013698,2]
[423858503,1780456239000,-500.0,0.00013698,2]
[423858501,1780456239000,-500.0,0.00013698,2]
[423858513,1780456239000,-500.0,0.00013698,2]
[423858495,1780456239000,-500.0,0.00013698,2]
[423858478,1780456239000,-2206.77541534,0.00013694,2]
[423858449,1780456239000,-300.0,0.00010199,2]
[423858486,1780456239000,-500.0,0.00013698,2]
[423858446,1780456239000,-300.0,0.00010199,2]
[423858445,1780456239000,-300.0,0.00010199,2]
[423858448,1780456239000,-300.0,0.00010199,2]
[423858447,1780456239000,-300.0,0.00010199,2]
[423858460,1780456239000,-872.19320732,0.00010651,7]
[423858505,1780456239000,-500.0,0.00013698,2]
[423858452,1780456239000,-300.0,0.00010199,2]
[423858453,1780456239000,-300.0,0.00010199,2]
[423858451,1780456239000,-300.0,0.00010199,2]
[423858458,1780456239000,-300.0,0.00010199,2]
[423858456,1780456239000,-300.0,0.00010199,2]
[423858457,1780456239000,-300.0,0.00010199,2]
[423858454,1780456239000,-300.0,0.00010199,2]
[423858455,1780456239000,-300.0,0.00010199,2]
[423858463,1780456239000,-151.6,0.00012,2]
[423858461,1780456239000,-1680.0,0.00010981,2]
[423858465,1780456239000,-1851.25822491,0.00013594,2]
[423858464,1780456239000,-1977.0,0.00012079,2]
[423858468,1780456239000,-2206.77541534,0.00013694,2]
[423858470,1780456239000,-2206.77541534,0.00013694,2]
[423858462,1780456239000,-166.9,0.00011808,2]
[423858466,1780456239000,-2206.77541534,0.00013694,2]
[423858469,1780456239000,-2206.77541534,0.00013694,2]
[423858467,1780456239000,-282.07187248,0.00013694,2]
[423858471,1780456239000,-2206.77541534,0.00013694,2]
[423858472,1780456239000,-2206.77541534,0.00013694,2]
[423858473,1780456239000,-2206.77541534,0.00013694,2]
[423858476,1780456239000,-2206.77541534,0.00013694,2]
[423858475,1780456239000,-2206.77541534,0.00013694,2]
[423858487,1780456239000,-304.15180568,0.00013698,2]
[423858507,1780456239000,-500.0,0.00013698,2]
[423858459,1780456239000,-872.19320732,0.00010271,7]
[423858508,1780456239000,-500.0,0.00013698,2]
[423858547,1780456239000,-500.0,0.00013698,2]
[423858552,1780456239000,-500.6383455,0.00013698,2]
[423858553,1780456239000,-500.0,0.00013698,2]
[423858548,1780456239000,-500.0,0.00013698,2]
[423858550,1780456239000,-500.0,0.00013698,2]
[423858549,1780456239000,-500.0,0.00013698,2]
[423858551,1780456239000,-500.0,0.00013698,2]
[423858555,1780456239000,-500.0,0.00013698,2]
[423858565,1780456239000,-500.0,0.00013698,2]
[423858566,1780456239000,-500.0,0.00013698,2]
[423858567,1780456239000,-500.0,0.00013698,2]
[423858556,1780456239000,-500.38397917,0.00013698,2]
[423858557,1780456239000,-500.81471204,0.00013698,2]
[423858554,1780456239000,-500.0,0.00013698,2]
[423858562,1780456239000,-500.0,0.00013698,2]
[423858563,1780456239000,-500.0,0.00013698,2]
[423858564,1780456239000,-500.0,0.00013698,2]
[423858561,1780456239000,-500.0,0.00013698,2]
[423858558,1780456239000,-500.0,0.00013698,2]
[423858559,1780456239000,-500.0,0.00013698,2]
[423858560,1780456239000,-500.0,0.00013698,2]